{"text_format":"1","workbook":"xlsx","n_sheets":9,"sheets":["Risk","Crop","Log_TPL","Pests","Lists","Costs","Logos","Pest_Report","WDs"],"not_rendered":{"charts":4,"images":4,"macros":1,"external_links":0,"defined_names":75,"comments":0,"pivot_tables":0},"unopened":[],"bounds":{"document_bytes":16777216,"sheet_cells":100000,"rows_first":2000,"rows_last":500,"rows_between":2000,"halvings":0,"cell_chars":16384,"cell_head_chars":4096},"cells_cut":0,"cells_raw":0,"read":"whole","date_system":"1900"}

{"sheet":"Risk","index":0,"n_rows":16,"n_cols":21,"rows_kept":16,"cut":false,"hidden":false,"merged":[[5,6,7,20],[1,5,1,6],[2,6,2,7],[2,9,2,12],[2,13,2,16],[2,17,2,20]]}
[]
[]
[null,null,null,"Crop Practices",null,null,"Pest",null,"Index","Low",null,null,null,"Med",null,null,null,"High"]
[null,null,null,"Planting Date","2021-05-01",null,null,"Weeds",{"$f":"WDs_RiskIndex","v":435},{"$f":"WDs_RiskIndex","v":435},{"$f":"WDs_RiskIndex","v":435},{"$f":"WDs_RiskIndex","v":435},{"$f":"WDs_RiskIndex","v":435},{"$f":"WDs_RiskIndex","v":435},{"$f":"WDs_RiskIndex","v":435},{"$f":"WDs_RiskIndex","v":435},{"$f":"WDs_RiskIndex","v":435},{"$f":"WDs_RiskIndex","v":435},{"$f":"WDs_RiskIndex","v":435},{"$f":"WDs_RiskIndex","v":435},{"$f":"WDs_RiskIndex","v":435}]
[null,null,null,"Field History"]
[null,null,null,"Previous Crop","Peanut",null,"Red Dots - Change practices to eliminate.\r\nYellow Dots - Consider adjusting practices to reduce risk.\r\nGreen Dots - Risk is acceptable for selected practices."]
[null,null,null,"Previous Weed Control","Poor"]
[null,null,null,"Weed Pressure","High"]
[null,null,null,"Field Practices"]
[null,null,null,"Irrigation","None"]
[null,null,null,"Weed Management"]
[null,null,null,"Cultivation","None"]
[null,null,null,"EPOST OT","None"]
[null,null,null,"Hand Weeding","None"]
[null,null,null,"Layby","None"]
[null,null,null,"Pre Transplant","None"]

{"sheet":"Crop","index":1,"n_rows":13,"n_cols":5,"rows_kept":13,"cut":false,"hidden":true,"merged":[[12,1,12,4],[13,1,13,4],[14,1,14,4],[15,1,15,4],[6,1,6,4],[7,1,7,4],[8,1,8,4],[9,1,9,4],[10,1,10,4],[11,1,11,4]]}
["Crop","Tobacco"]
[]
["Planting Season","Date","Month","Day of Month","Day of Year"]
["Start","2021-04-15",{"$f":"MONTH(B4)","v":4},{"$f":"DAY(B4)","v":15},{"$f":"B4-DATE(YEAR(B4),1,1)+1","v":105}]
["End","2021-06-30",{"$f":"MONTH(B5)","v":6},{"$f":"DAY(B5)","v":30},{"$f":"B5-DATE(YEAR(B5),1,1)+1","v":181}]
[]
["Title","Weed Risk Management Tool - NC Tobacco"]
["Subtitle"]
["Credit Lines"]
[null,"Matthew C. Vann, David Jordan, and Greg Buol"]
[null,"Department of Crop and Soil Sciences"]
[]
[null,"North Carolina State University, Raleigh NC"]

{"sheet":"Log_TPL","index":2,"n_rows":169,"n_cols":20,"rows_kept":169,"cut":false,"hidden":true,"merged":[[53,5,53,9],[0,0,0,14],[22,5,22,14],[49,5,49,9],[50,5,50,9],[51,5,51,9],[52,5,52,9]]}
["Field and Production Information"]
[null,null,null,null,null,null,null,null,null,null,null,null,null,null,null,null,null,null,"Input Selection Lists"]
[null,null,null,"Crop",{"$f":"Crop","v":"Tobacco"},null,null,null,null,null,null,null,null,null,null,null,null,null,"Tillage_Pracs","Control_Rating"]
[null,null,null,"Field Area (A)"]
[null,null,null,null,null,null,null,null,null,null,null,null,null,null,null,null,null,null,"Bed","No Control (<5%)"]
[null,null,null,"Soil ","Mapped Series","% of Field",null,null,null,null,null,null,null,null,null,null,null,null,"Chisel","Poor (5% to 20%)"]
[null,null,null,null,null,null,null,null,null,null,null,null,null,null,null,null,null,null,"Cultivate","Low (20% to 50%)"]
[null,null,null,null,null,null,null,null,null,null,null,null,null,null,null,null,null,null,"Disk","Moderate (50% to 80%)"]
[null,null,null,null,null,null,null,null,null,null,null,null,null,null,null,null,null,null,"Moldboard Plow","High (80% to 90%)"]
[null,null,null,null,null,null,null,null,null,null,null,null,null,null,null,null,null,null,"No Till","Excellent (90% to 100%)"]
[null,null,null,null,null,null,null,null,null,null,null,null,null,null,null,null,null,null,"Other"]
[null,null,null,null,null,null,null,null,null,null,null,null,null,null,null,null,null,null,"Rip"]
[null,null,null,"Tillage Practice","Date","Equipment",null,null,null,null,null,null,null,null,null,null,null,null,"Rip and Bed"]
[null,null,null,null,null,null,null,null,null,null,null,null,null,null,null,null,null,null,"Strip Till"]
[]
[]
[]
[null,null,null,"Lime Applications","Date","Rate (lbs/A)"]
[null,null,null,"Current Year"]
[null,null,null,"Last Year"]
[]
[null,null,null,"Fertilizer","Date","N","P2O5","K2O","B","Cu","Fe","Mn","Mo","S","Zn"]
[null,null,null,null,null,"lbs/A"]
[]
[]
[]
[]
[]
[]
[null,null,null,"Weed Control","Date","Weeds","Weed Size","Trade Name","Rate","Trade Name","Rate","Trade Name","Rate","Trade Name","Rate","Evaluation Date","Control Rating"]
[null,null,null,"Burndown"]
[null,null,null,"Pre-Transplant"]
[null,null,null,"Cultivation"]
[]
[]
[null,null,null,"Postemergence"]
[null,null,null,"Hand Weeding"]
[null,null,null,"Layby"]
[]
[null,null,null,"Pest Treaments","Date","Pest","Severity","Trade Name","Rate","Trade Name","Rate","Evaluation Date","Control Rating"]
[]
[]
[]
[]
[]
[]
[]
[]
[null,null,null,"Development Dates","Date","Crop Status"]
[null,null,null,"Planted"]
[null,null,null,"Transplant"]
[null,null,null,"Layby"]
[null,null,null,"First Harvest"]
[null,null,null,"Last Harvest"]
[]
[null,null,null,"Weeds at Harvest"]
[]
[]
[]
[]
[]
[]
[]
[]
[null,null,null,"Yield Goal (lbs/A)"]
[null,null,null,"Yield (lbs/A)"]
[null,null,null,"Selling Price ($/lb)"]
[]
[null,null,null,"Rainfall/Irrigation","Date","Amount (in)","Month",null,"Month","Amount (in)"]
[null,null,null,null,null,null,{"$f":"IF(ISBLANK(E70),\"\",TEXT(E70,\"mmm\"))","v":""},null,"Jan",{"$f":"SUMIF(G$70:G$169,\"=\" & I70,F$70:F$169)","v":0}]
[null,null,null,null,null,null,{"$f":"IF(ISBLANK(E71),\"\",TEXT(E71,\"mmm\"))","v":""},null,"Feb",{"$f":"SUMIF(G$70:G$169,\"=\" & I71,F$70:F$169)","v":0}]
[null,null,null,null,null,null,"",null,"Mar",0]
[null,null,null,null,null,null,"",null,"Apr",0]
[null,null,null,null,null,null,"",null,"May",0]
[null,null,null,null,null,null,"",null,"Jun",0]
[null,null,null,null,null,null,"",null,"Jul",0]
[null,null,null,null,null,null,"",null,"Aug",0]
[null,null,null,null,null,null,"",null,"Sep",0]
[null,null,null,null,null,null,"",null,"Oct",0]
[null,null,null,null,null,null,"",null,"Nov",0]
[null,null,null,null,null,null,"",null,"Dec",0]
[null,null,null,null,null,null,""]
[null,null,null,null,null,null,""]
[null,null,null,null,null,null,""]
[null,null,null,null,null,null,""]
[null,null,null,null,null,null,""]
[null,null,null,null,null,null,""]
[null,null,null,null,null,null,""]
[null,null,null,null,null,null,""]
[null,null,null,null,null,null,""]
[null,null,null,null,null,null,""]
[null,null,null,null,null,null,""]
[null,null,null,null,null,null,""]
[null,null,null,null,null,null,""]
[null,null,null,null,null,null,""]
[null,null,null,null,null,null,""]
[null,null,null,null,null,null,""]
[null,null,null,null,null,null,""]
[null,null,null,null,null,null,""]
[null,null,null,null,null,null,""]
[null,null,null,null,null,null,""]
[null,null,null,null,null,null,""]
[null,null,null,null,null,null,""]
[null,null,null,null,null,null,""]
[null,null,null,null,null,null,""]
[null,null,null,null,null,null,""]
[null,null,null,null,null,null,""]
[null,null,null,null,null,null,""]
[null,null,null,null,null,null,""]
[null,null,null,null,null,null,""]
[null,null,null,null,null,null,""]
[null,null,null,null,null,null,""]
[null,null,null,null,null,null,""]
[null,null,null,null,null,null,""]
[null,null,null,null,null,null,""]
[null,null,null,null,null,null,""]
[null,null,null,null,null,null,""]
[null,null,null,null,null,null,""]
[null,null,null,null,null,null,""]
[null,null,null,null,null,null,""]
[null,null,null,null,null,null,""]
[null,null,null,null,null,null,""]
[null,null,null,null,null,null,""]
[null,null,null,null,null,null,""]
[null,null,null,null,null,null,""]
[null,null,null,null,null,null,""]
[null,null,null,null,null,null,""]
[null,null,null,null,null,null,""]
[null,null,null,null,null,null,""]
[null,null,null,null,null,null,""]
[null,null,null,null,null,null,""]
[null,null,null,null,null,null,""]
[null,null,null,null,null,null,""]
[null,null,null,null,null,null,""]
[null,null,null,null,null,null,{"$f":"IF(ISBLANK(E135),\"\",TEXT(E135,\"mmm\"))","v":""}]
[null,null,null,null,null,null,""]
[null,null,null,null,null,null,""]
[null,null,null,null,null,null,""]
[null,null,null,null,null,null,""]
[null,null,null,null,null,null,""]
[null,null,null,null,null,null,""]
[null,null,null,null,null,null,""]
[null,null,null,null,null,null,""]
[null,null,null,null,null,null,""]
[null,null,null,null,null,null,""]
[null,null,null,null,null,null,""]
[null,null,null,null,null,null,""]
[null,null,null,null,null,null,""]
[null,null,null,null,null,null,""]
[null,null,null,null,null,null,""]
[null,null,null,null,null,null,""]
[null,null,null,null,null,null,""]
[null,null,null,null,null,null,""]
[null,null,null,null,null,null,""]
[null,null,null,null,null,null,""]
[null,null,null,null,null,null,""]
[null,null,null,null,null,null,""]
[null,null,null,null,null,null,""]
[null,null,null,null,null,null,""]
[null,null,null,null,null,null,""]
[null,null,null,null,null,null,""]
[null,null,null,null,null,null,""]
[null,null,null,null,null,null,""]
[null,null,null,null,null,null,""]
[null,null,null,null,null,null,""]
[null,null,null,null,null,null,""]
[null,null,null,null,null,null,""]
[null,null,null,null,null,null,""]
[null,null,null,null,null,null,""]

{"sheet":"Pests","index":3,"n_rows":2,"n_cols":3,"rows_kept":2,"cut":false,"hidden":true,"merged":[]}
["PestType","Pest","PestID"]
["Pest","Weeds","WDs"]

{"sheet":"Lists","index":4,"n_rows":13,"n_cols":17,"rows_kept":13,"cut":false,"hidden":true,"merged":[]}
["Category","Category_Pest","CategoryID","Category_List","Category_List_Type","Months","Land_Area_Units","Field_History\\Previous_Crop","Field_History\\Previous_Weed_Control","Field_History\\Weed_Pressure","Field_Practices\\Irrigation","Weed_Management\\Cultivation","Weed_Management\\EPOST_OT","Weed_Management\\Hand_Weeding","Weed_Management\\Layby","Weed_Management\\Pre_Transplant","Crop_Practices\\Planting_Date"]
["Crop_Practices\\Planting_Date",null,"Crop_Practices\\Planting_Date","Crop_Practices\\Planting_Date","Date","(01) January","ha","Corn","01|Poor","01|Low","None","01|None","01|None","01|None","01|None","01|None","001 to 120"]
["Field_History\\Previous_Crop",null,"Field_History\\Previous_Crop","Field_History\\Previous_Crop","Single","(02) February","ac","Cotton","02|Fair","02|Moderate","Yes","02|1 Cultivation","02|Napropamide","02|Minimal (2 person hours/acre)","02|Napropamide","02|Sulfentrazone and Clomazone","121 to 140"]
["Field_History\\Previous_Weed_Control",null,"Field_History\\Previous_Weed_Control","Field_History\\Previous_Weed_Control","Single","(03) March",null,"Grain Sorgham","03|Good","03|High",null,"03|2 Cultivations",null,"03|Moderate (4 person hours/acre)","03|Pendimethalin",null,"141 to 365"]
["Field_History\\Weed_Pressure",null,"Field_History\\Weed_Pressure","Field_History\\Weed_Pressure","Single","(04) April",null,"Peanut",null,null,null,"04|3 Cultivations",null,"04|Intensive (6 person hours/acre)"]
["Field_Practices\\Irrigation",null,"Field_Practices\\Irrigation","Field_Practices\\Irrigation","Single","(05) May",null,"Soybean"]
["Weed_Management\\Cultivation",null,"Weed_Management\\Cultivation","Weed_Management\\Cultivation","Single","(06) June",null,"Sweetpotato"]
["Weed_Management\\EPOST_OT",null,"Weed_Management\\EPOST_OT","Weed_Management\\EPOST_OT","Single","(07) July"]
["Weed_Management\\Hand_Weeding",null,"Weed_Management\\Hand_Weeding","Weed_Management\\Hand_Weeding","Single","(08) August"]
["Weed_Management\\Layby",null,"Weed_Management\\Layby","Weed_Management\\Layby","Single","(09) September"]
["Weed_Management\\Pre_Transplant",null,"Weed_Management\\Pre_Transplant","Weed_Management\\Pre_Transplant","Single","(10) October"]
[null,null,null,null,null,"(11) November"]
[null,null,null,null,null,"(12) December"]

{"sheet":"Costs","index":5,"n_rows":30,"n_cols":14,"rows_kept":30,"cut":false,"hidden":true,"merged":[[0,7,0,9],[0,10,0,12],[12,7,12,9],[12,10,12,12],[16,7,16,9],[16,10,16,12]]}
["Land Area Units ","ac",null,null,null,null,null,{"$f":"Cost_Header","v":"Cost ($/ac)"},null,null,{"$f":"CONCATENATE(\"Person Hours (hrs/\",sel_Land_Area_Units,\")\")","v":"Person Hours (hrs/ac)"}]
["Category","Item",{"$f":"CONCATENATE(\"Cost ($/\",sel_Land_Area_Units,\")\")","v":"Cost ($/ac)"},"Multiplier",{"$f":"CONCATENATE(\"Person Hours (hrs/\",sel_Land_Area_Units,\")\")","v":"Person Hours (hrs/ac)"},null,"Category","Max","Min","Sel","Max","Min","Sel","Selection"]
["Base_Cost","Base_Cost",3650.87,null,0,null,"Base_Cost",{"$f":"Cost_Base","v":3650.87},{"$f":"Cost_Base","v":3650.87},{"$f":"Cost_Base","v":3650.87},{"$f":"PersonHours_Base","v":0},{"$f":"PersonHours_Base","v":0},{"$f":"PersonHours_Base","v":0}]
["Field_Practices\\Irrigation","None",0,null,null,null,"Field_Practices\\Irrigation",{"$f":"calcCostMax(G4,Category)","v":117.99},{"$f":"calcCostMin(G4)","v":0},{"$f":"calcCost(G4,N4,Category)","v":0},{"$f":"calcPersonHrsMax(G4,Category)","v":0},{"$f":"calcPersonHrsMin(G4)","v":0},{"$f":"calcPersonHrs(G4,N4,Category)","v":0},{"$f":"CONCATENATE(IF(ISBLANK(sel_Field_Practices\\Irrigation),\"\",sel_Field_Practices\\Irrigation))","v":"None"}]
["Field_Practices\\Irrigation","Yes",117.99,null,null,null,"Weed_Management\\Cultivation",32.1,0,0,0,0,0,{"$f":"CONCATENATE(IF(ISBLANK(sel_Weed_Management\\Cultivation),\"\",sel_Weed_Management\\Cultivation))","v":"None"}]
["Weed_Management\\Cultivation","None",0,null,null,null,"Weed_Management\\EPOST_OT",33.71,0,0,0,0,0,{"$f":"CONCATENATE(IF(ISBLANK(sel_Weed_Management\\EPOST_OT),\"\",sel_Weed_Management\\EPOST_OT))","v":"None"}]
["Weed_Management\\Cultivation","1 Cultivation",10.7,null,null,null,"Weed_Management\\Hand_Weeding",76.02,0,0,0,0,0,{"$f":"CONCATENATE(IF(ISBLANK(sel_Weed_Management\\Hand_Weeding),\"\",sel_Weed_Management\\Hand_Weeding))","v":"None"}]
["Weed_Management\\Cultivation","2 Cultivations",21.4,null,null,null,"Weed_Management\\Layby",33.71,0,0,0,0,0,{"$f":"CONCATENATE(IF(ISBLANK(sel_Weed_Management\\Layby),\"\",sel_Weed_Management\\Layby))","v":"None"}]
["Weed_Management\\Cultivation","3 Cultivations",32.1,null,null,null,"Weed_Management\\Pre_Transplant",46.98,0,0,0,0,0,{"$f":"CONCATENATE(IF(ISBLANK(sel_Weed_Management\\Pre_Transplant),\"\",sel_Weed_Management\\Pre_Transplant))","v":"None"}]
["Weed_Management\\EPOST_OT","None",0]
["Weed_Management\\EPOST_OT","Napropamide",33.71,null,null,null,"Total",{"$f":"SUM(H$3:H9)","v":3991.3799999999997},{"$f":"SUM(I$3:I9)","v":3650.87},{"$f":"IF(ISERROR(SUM(J$3:J9)),0,SUM(J$3:J9))","v":3650.87},{"$f":"SUM(K$3:K9)","v":0},{"$f":"SUM(L$3:L9)","v":0},{"$f":"IF(ISERROR(SUM(M$3:M9)),0,SUM(M$3:M9))","v":0}]
["Weed_Management\\Hand_Weeding","None",0]
["Weed_Management\\Hand_Weeding","Minimal (2 person hours/acre)",25.35,null,null,null,null,{"$f":"CONCATENATE(\"Cost Thresholds ($/\",sel_Land_Area_Units,\")\")","v":"Cost Thresholds ($/ac)"},null,null,{"$f":"CONCATENATE(\"Person Hour Thresholds (hrs/\",sel_Land_Area_Units,\")\")","v":"Person Hour Thresholds (hrs/ac)"}]
["Weed_Management\\Hand_Weeding","Moderate (4 person hours/acre)",50.68,null,null,null,"High",{"$f":"Cost_Min + 0.66667*(Cost_Max-Cost_Min)","v":3877.8778016999995},null,null,{"$f":"PersonHours_Min + 0.66667*(PersonHours_Max-PersonHours_Min)","v":0}]
["Weed_Management\\Hand_Weeding","Intensive (6 person hours/acre)",76.02,null,null,null,"Moderate",{"$f":"Cost_Min + 0.33333*(Cost_Max-Cost_Min)","v":3764.3721983},null,null,{"$f":"PersonHours_Min + 0.33333*(PersonHours_Max-PersonHours_Min)","v":0}]
["Weed_Management\\Layby","None",0]
["Weed_Management\\Layby","Napropamide",33.71,null,null,null,null,{"$f":"CONCATENATE(\"Cost Ranges ($/\",sel_Land_Area_Units,\")\")","v":"Cost Ranges ($/ac)"},null,null,{"$f":"CONCATENATE(\"Person Hour Ranges (hrs/\",sel_Land_Area_Units,\")\")","v":"Person Hour Ranges (hrs/ac)"}]
["Weed_Management\\Layby","Pendimethalin",7.43,null,null,null,"Base",{"$f":"Cost_Base","v":3650.87},null,null,{"$f":"PersonHours_Base","v":0}]
["Weed_Management\\Pre_Transplant","None",0,null,null,null,"Low",{"$f":"Cost_Moderate-Cost_Base","v":113.50219830000015},null,null,{"$f":"PersonHours_Moderate-PersonHours_Base","v":0}]
["Weed_Management\\Pre_Transplant","Sulfentrazone and Clomazone",46.98,null,null,null,"Moderate",{"$f":"Cost_High-Cost_Moderate","v":113.50560339999947},null,null,{"$f":"PersonHours_High-PersonHours_Moderate","v":0}]
[null,null,null,null,null,null,"High",{"$f":"Cost_Max-Cost_High","v":113.50219830000015},null,null,{"$f":"PersonHours_Max-PersonHours_High","v":0}]
[]
[null,null,null,null,null,null,{"$f":"CONCATENATE(\"Estimated Cost: $\",ROUNDUP(TRUNC(Cost,2),0),\"/\",sel_Land_Area_Units)","v":"Estimated Cost: $3651/ac"}]
[]
[]
[]
[]
[]
[]
[null,null,null,null,null,null,{"$f":"CONCATENATE(\"Estimated Person Hours: \",ROUNDUP(TRUNC(PersonHours,2),0),\" hrs/\",sel_Land_Area_Units)","v":"Estimated Person Hours: 0 hrs/ac"}]

{"sheet":"Logos","index":6,"n_rows":0,"n_cols":0,"rows_kept":0,"cut":false,"hidden":true,"merged":[]}

{"sheet":"Pest_Report","index":7,"n_rows":48,"n_cols":4,"rows_kept":48,"cut":false,"hidden":true,"merged":[[0,0,0,3],[5,0,5,1],[5,2,5,3],[6,3,8,3],[41,3,42,3],[27,0,27,1],[27,2,27,3],[28,3,31,3],[32,0,32,1],[32,2,32,3],[33,3,34,3],[35,0,35,1],[35,2,35,3],[36,3,39,3],[40,0,40,1],[40,2,40,3],[43,0,43,1],[43,2,43,3],[44,3,45,3],[47,0,47,3],[9,0,9,1],[9,2,9,3],[10,3,15,3],[16,0,16,1],[16,2,16,3],[17,3,19,3],[20,0,20,1],[20,2,20,3],[21,3,23,3],[24,0,24,1],[24,2,24,3],[25,3,26,3]]}
["Tobacco - Weeds Risk Summary"]
[]
[]
[]
[]
["Crop Practices\\Planting Date",null,"Risk Points"]
[null,"May 21 to Jun 30",20,15]
[null,"May 01 to May 20*",15]
[null,"Apr 15 to Apr 30",10]
["Field History\\Previous Crop",null,"Risk Points"]
[null,"Peanut*",30,30]
[null,"Sweetpotato",25]
[null,"Cotton",20]
[null,"Grain Sorgham",15]
[null,"Soybean",10]
[null,"Corn",5]
["Field History\\Previous Weed Control",null,"Risk Points"]
[null,"Poor*",30,30]
[null,"Fair",20]
[null,"Good",10]
["Field History\\Weed Pressure",null,"Risk Points"]
[null,"High*",350,350]
[null,"Moderate",300]
[null,"Low",250]
["Field Practices\\Irrigation",null,"Risk Points"]
[null,"None*",10,10]
[null,"Yes",0]
["Weed Management\\Cultivation",null,"Risk Points"]
[null,"None*",0,0]
[null,"1 Cultivation",-25]
[null,"2 Cultivations",-50]
[null,"3 Cultivations",-100]
["Weed Management\\EPOST OT",null,"Risk Points"]
[null,"None*",0,0]
[null,"Napropamide",-100]
["Weed Management\\Hand Weeding",null,"Risk Points"]
[null,"None*",0,0]
[null,"Minimal (2 person hours/acre)",-50]
[null,"Moderate (4 person hours/acre)",-100]
[null,"Intensive (6 person hours/acre)",-200]
["Weed Management\\Layby",null,"Risk Points"]
[null,"None*",0,0]
[null,"Napropamide, Pendimethalin",-100]
["Weed Management\\Pre Transplant",null,"Risk Points"]
[null,"None*",0,0]
[null,"Sulfentrazone and Clomazone",-200]
[]
["* Selected options used in calculating pest risk.\r\nNote: Reduction in pest risk value by a control practice will be less under low risk conditions."]

{"sheet":"WDs","index":8,"n_rows":33,"n_cols":12,"rows_kept":33,"cut":false,"hidden":true,"merged":[[0,0,0,3]]}
["Weeds"]
["Category","Risk Level","Risk Level Description","Points",null,null,null,"Category","Max","Min","Risk","Selection"]
["Crop_Practices\\Planting_Date",1,"141 to 365",20,null,null,null,"Field_History\\Weed_Pressure",350,250,{"$f":"getRiskValue(\"A:A\",H3,J3,L3,\"Single\")","v":350},{"$f":"IF(ISBLANK(sel_Field_History\\Weed_Pressure),\"\",sel_Field_History\\Weed_Pressure)","v":"High"}]
["Crop_Practices\\Planting_Date",2,"121 to 140",15,null,null,null,"Field_History\\Previous_Crop",30,5,{"$f":"getRiskValue(\"A:A\",H4,J4,L4,\"Single\")","v":30},{"$f":"IF(ISBLANK(sel_Field_History\\Previous_Crop),\"\",sel_Field_History\\Previous_Crop)","v":"Peanut"}]
["Crop_Practices\\Planting_Date",3,"001 to 120",10,null,null,null,"Field_History\\Previous_Weed_Control",30,10,{"$f":"getRiskValue(\"A:A\",H5,J5,L5,\"Single\")","v":30},{"$f":"IF(ISBLANK(sel_Field_History\\Previous_Weed_Control),\"\",sel_Field_History\\Previous_Weed_Control)","v":"Poor"}]
["Field_History\\Previous_Crop",1,"Peanut",30,null,null,null,"Crop_Practices\\Planting_Date",20,10,{"$f":"getRiskValue(\"A:A\",H6,J6,L6,\"Date\")","v":15},{"$f":"IF(ISBLANK(sel_Crop_Practices\\Planting_Date),\"\",sel_Crop_Practices\\Planting_Date)","v":"2021-05-01"}]
["Field_History\\Previous_Crop",2,"Sweetpotato",25,null,null,null,"Field_Practices\\Irrigation",10,0,{"$f":"getRiskValue(\"A:A\",H7,J7,L7,\"Single\")","v":10},{"$f":"IF(ISBLANK(sel_Field_Practices\\Irrigation),\"\",sel_Field_Practices\\Irrigation)","v":"None"}]
["Field_History\\Previous_Crop",3,"Cotton",20,null,null,null,"Weed_Management\\Cultivation",0,-100,{"$f":"getRiskValue(\"A:A\",H8,J8,L8,\"Single\")","v":0},{"$f":"IF(ISBLANK(sel_Weed_Management\\Cultivation),\"\",sel_Weed_Management\\Cultivation)","v":"None"}]
["Field_History\\Previous_Crop",4,"Grain Sorgham",15,null,null,null,"Weed_Management\\EPOST_OT",0,-100,{"$f":"getRiskValue(\"A:A\",H9,J9,L9,\"Single\")","v":0},{"$f":"IF(ISBLANK(sel_Weed_Management\\EPOST_OT),\"\",sel_Weed_Management\\EPOST_OT)","v":"None"}]
["Field_History\\Previous_Crop",5,"Soybean",10,null,null,null,"Weed_Management\\Hand_Weeding",0,-200,{"$f":"getRiskValue(\"A:A\",H10,J10,L10,\"Single\")","v":0},{"$f":"IF(ISBLANK(sel_Weed_Management\\Hand_Weeding),\"\",sel_Weed_Management\\Hand_Weeding)","v":"None"}]
["Field_History\\Previous_Crop",6,"Corn",5,null,null,null,"Weed_Management\\Layby",0,-100,{"$f":"getRiskValue(\"A:A\",H11,J11,L11,\"Single\")","v":0},{"$f":"IF(ISBLANK(sel_Weed_Management\\Layby),\"\",sel_Weed_Management\\Layby)","v":"None"}]
["Field_History\\Previous_Weed_Control",1,"Poor",30,null,null,null,"Weed_Management\\Pre_Transplant",0,-200,{"$f":"getRiskValue(\"A:A\",H12,J12,L12,\"Single\")","v":0},{"$f":"IF(ISBLANK(sel_Weed_Management\\Pre_Transplant),\"\",sel_Weed_Management\\Pre_Transplant)","v":"None"}]
["Field_History\\Previous_Weed_Control",2,"Fair",20]
["Field_History\\Previous_Weed_Control",3,"Good",10,null,null,null,"Total",{"$f":"SUMIF(I3:I12,\">0\")","v":440},{"$f":"SUMIF(J3:J12,\">0\")","v":275},{"$f":"MAX(WDs_MinRiskIndex,SUM(K3:K12))","v":435}]
["Field_History\\Weed_Pressure",1,"High",350]
["Field_History\\Weed_Pressure",2,"Moderate",300,null,null,null,"High Risk Index",378]
["Field_History\\Weed_Pressure",3,"Low",250,null,null,null,"Moderate Risk Index",327]
["Field_Practices\\Irrigation",1,"None",10]
["Field_Practices\\Irrigation",2,"Yes",0]
["Weed_Management\\Cultivation",1,"None",0]
["Weed_Management\\Cultivation",2,"1 Cultivation",-25]
["Weed_Management\\Cultivation",3,"2 Cultivations",-50]
["Weed_Management\\Cultivation",4,"3 Cultivations",-100]
["Weed_Management\\EPOST_OT",1,"None",0]
["Weed_Management\\EPOST_OT",2,"Napropamide",-100]
["Weed_Management\\Hand_Weeding",1,"None",0]
["Weed_Management\\Hand_Weeding",2,"Minimal (2 person hours/acre)",-50]
["Weed_Management\\Hand_Weeding",3,"Moderate (4 person hours/acre)",-100]
["Weed_Management\\Hand_Weeding",4,"Intensive (6 person hours/acre)",-200]
["Weed_Management\\Layby",1,"None",0]
["Weed_Management\\Layby",2,"Napropamide|Pendimethalin",-100]
["Weed_Management\\Pre_Transplant",1,"None",0]
["Weed_Management\\Pre_Transplant",2,"Sulfentrazone and Clomazone",-200]